bitfinex-derivatives/quotes_BTCF0:USTF0_20250609
["timestamp","ask_amount","ask_price","bid_price","bid_amount"]
[1749434521508,1.26691454,105530.0,105520.0,0.43035402]
[1749434521710,0.73119454,105530.0,105520.0,0.49445402]
[1749434522014,1.26691454,105530.0,105520.0,0.49445402]
[1749434522213,1.26711454,105530.0,105520.0,0.49445402]
[1749434522414,1.62771454,105530.0,105520.0,0.49445402]
[1749434522610,1.62771454,105530.0,105520.0,0.37694727]
[1749434522919,1.62791454,105530.0,105520.0,0.37694727]
[1749434523313,1.20950129,105530.0,105520.0,0.31284727]
[1749434523618,1.74542129,105530.0,105520.0,0.31284727]
[1749434526113,1.62791454,105530.0,105520.0,0.31284727]
[1749434528116,0.99719454,105530.0,105520.0,0.43035402]
[1749434528315,0.90908954,105530.0,105520.0,0.52555402]
[1749434528520,1.53295454,105530.0,105520.0,0.52555402]
[1749434528713,1.53315454,105530.0,105520.0,0.52555402]
[1749434529019,1.53295454,105530.0,105520.0,0.52555402]
[1749434529211,1.10343454,105530.0,105520.0,0.82245402]
[1749434529419,1.10323454,105530.0,105520.0,0.82245402]
[1749434529618,1.10343454,105530.0,105520.0,0.97007305]
[1749434532523,1.10343454,105530.0,105520.0,0.8525663]
[1749434532722,1.10343454,105530.0,105520.0,0.97007305]
[1749434539026,0.74263454,105530.0,105520.0,0.97007305]
[1749434541435,0.77433454,105530.0,105520.0,0.97007305]
[1749434541631,0.80713454,105530.0,105520.0,0.97007305]
[1749434542131,0.80713454,105530.0,105520.0,0.93917305]
[1749434545029,0.80713454,105530.0,105520.0,0.7890663]
[1749434545238,1.16793454,105530.0,105520.0,0.7573663]
[1749434545426,1.28544129,105530.0,105520.0,0.5679233]
[1749434545736,1.28544129,105530.0,105520.0,0.7573663]
[1749434546325,1.28949789,105530.0,105520.0,0.7573663]
[1749434548137,1.17199114,105530.0,105520.0,0.7573663]
[1749434548436,1.16793454,105530.0,105520.0,0.7573663]
[1749434548636,1.28544129,105530.0,105520.0,0.7573663]
[1749434550441,1.26835175,105530.0,105520.0,0.47315903]
[1749434550942,1.26835175,105530.0,105520.0,0.66260203]
[1749434551141,1.26835175,105530.0,105520.0,0.36570203]
[1749434551332,1.27240835,105530.0,105520.0,0.36570203]
[1749434551941,1.1549016,105530.0,105520.0,0.36570203]
[1749434553335,1.150845,105530.0,105520.0,0.36570203]
[1749434553735,0.614925,105530.0,105520.0,0.36570203]
[1749434553946,0.789805,105530.0,105520.0,0.57797305]
[1749434554132,0.789805,105530.0,105520.0,0.78493375]
[1749434554133,0.790005,105530.0,105520.0,0.78493375]
[1749434555337,0.254125,105530.0,105520.0,0.78493375]
[1749434555541,0.790005,105530.0,105520.0,0.78520432]
[1749434555737,0.790005,105530.0,105520.0,0.57824362]
[1749434555942,1.150805,105530.0,105520.0,0.57824362]
[1749434557034,1.150805,105530.0,105520.0,0.87514362]
[1749434561949,1.26831175,105530.0,105520.0,0.75763687]
[1749434562338,1.26831175,105530.0,105520.0,0.6803903]
[1749434562542,1.27236835,105530.0,105520.0,0.4734296]
[1749434562942,1.27236835,105530.0,105520.0,0.1765296]
[1749434563247,1.27236835,105530.0,105520.0,0.3659726]
[1749434563448,1.27236835,105530.0,105520.0,0.1765296]
[1749434563648,1.27236835,105530.0,105520.0,0.3659726]
[1749434564042,1.27336835,105530.0,105520.0,0.3659726]
[1749434564244,1.27536835,105530.0,105520.0,0.3659726]
[1749434564747,1.27536835,105530.0,105520.0,0.1765296]
[1749434565139,1.27536835,105530.0,105520.0,0.3659726]
[1749434567551,1.27131175,105530.0,105520.0,0.3659726]
[1749434569747,1.153805,105530.0,105520.0,0.3659726]
[1749434569947,1.27131175,105530.0,105520.0,0.3659726]
[1749434571255,1.27131175,105530.0,105520.0,0.1765296]
[1749434571556,1.27131175,105530.0,105520.0,0.3659726]
[1749434572257,1.27560175,105530.0,105520.0,0.3659726]
[1749434573952,1.63640175,105530.0,105520.0,0.3659726]
[1749434574949,1.27560175,105530.0,105520.0,0.3659726]
[1749434575158,1.158095,105530.0,105520.0,0.3659726]
[1749434575456,1.27560175,105530.0,105520.0,0.3659726]
[1749434578059,1.63640175,105530.0,105520.0,0.3659726]
[1749434580357,1.63640175,105530.0,105520.0,0.1765296]
[1749434580655,1.67817381,105530.0,105520.0,0.02864]
[1749434580962,1.68223041,105530.0,105520.0,0.02864]
[1749434588372,0.1894609,105510.0,105500.0,0.13485056]
[1749434588575,0.1894789,105500.0,105490.0,0.2694654]
[1749434588865,0.2851789,105500.0,105490.0,0.1894914]
[1749434589071,0.1894969,105490.0,105480.0,0.74920415]
[1749434589257,0.6515769,105490.0,105480.0,0.5247367]
[1749434589462,1.0860969,105490.0,105480.0,0.61950097]
[1749434589970,1.09715735,105490.0,105480.0,0.61950097]
[1749434590368,1.09715735,105490.0,105480.0,0.62350097]
[1749434590767,1.09715735,105490.0,105480.0,0.61950097]
[1749434590967,1.09715735,105490.0,105480.0,0.62150097]
[1749434591160,1.09715735,105490.0,105480.0,0.59719247]
[1749434591364,1.12995735,105490.0,105480.0,0.59739247]
[1749434591568,1.16245735,105490.0,105480.0,0.59739247]
[1749434591771,1.16245735,105490.0,105480.0,0.55001397]
[1749434591975,1.16245735,105490.0,105480.0,0.21703427]
[1749434591976,1.6444241,105490.0,105480.0,0.21703427]
[1749434592176,1.58991735,105490.0,105480.0,0.02227]
[1749434592478,1.7074241,105490.0,105480.0,0.02207]
[1749434592780,1.7074241,105490.0,105480.0,0.02127]
[1749434592981,1.7074241,105490.0,105480.0,0.0335001]
[1749434593482,1.7074241,105490.0,105480.0,0.01927]
[1749434593874,1.7074241,105490.0,105480.0,0.03348533]
[1749434595180,1.7094241,105490.0,105480.0,0.01927]
[1749434595779,1.7104241,105490.0,105480.0,0.03348279]
[1749434595981,1.7104241,105490.0,105480.0,0.01927]
[1749434596175,1.7104241,105490.0,105480.0,0.03348279]
[1749434596376,1.7104241,105490.0,105480.0,0.01927]
[1749434596577,1.7104241,105490.0,105480.0,0.03348117]
[1749434596781,1.7104241,105490.0,105480.0,0.03348115]
[1749434597278,1.7104241,105490.0,105480.0,0.03348114]
[1749434597775,1.7104241,105490.0,105480.0,0.03348115]
[1749434598678,2.0712241,105490.0,105480.0,0.03348115]
[1749434598883,2.0712241,105490.0,105480.0,0.03367973]
[1749434599280,2.0712241,105490.0,105480.0,0.01927]
[1749434599472,2.0755141,105490.0,105480.0,0.03367938]
[1749434600185,2.0755141,105490.0,105480.0,0.03774544]
[1749434600784,2.0755141,105490.0,105480.0,0.03774545]
[1749434600986,2.0755141,105490.0,105480.0,0.0233266]
[1749434601185,2.0755141,105490.0,105480.0,0.03774545]
[1749434601687,2.0800341,105490.0,105480.0,0.22726025]
[1749434601876,1.5397141,105490.0,105480.0,0.03774585]
[1749434602076,0.92944725,105490.0,105480.0,0.43954724]
[1749434602279,0.37915045,105490.0,105480.0,0.53454688]
[1749434602580,1.10892725,105490.0,105480.0,0.52014835]
[1749434602888,1.10892725,105490.0,105480.0,0.66749739]
[1749434603182,1.10888725,105490.0,105480.0,0.68189531]
[1749434603378,1.10788725,105490.0,105480.0,0.68189531]
[1749434603587,0.56764725,105490.0,105480.0,0.68189531]
[1749434603781,1.10792725,105490.0,105480.0,0.68189531]
[1749434603981,1.10792725,105490.0,105480.0,0.66749739]
[1749434603982,0.56764725,105490.0,105480.0,0.66749739]
[1749434604178,0.56564725,105490.0,105480.0,0.66749739]
[1749434604487,1.10588725,105490.0,105480.0,0.66749739]
[1749434604784,1.10588725,105490.0,105480.0,0.68189509]
[1749434605383,1.10588725,105490.0,105480.0,0.56438834]
[1749434605583,1.10588725,105490.0,105480.0,0.56439183]
[1749434605783,1.10588725,105490.0,105480.0,0.56439187]
[1749434605989,1.10588725,105490.0,105480.0,0.56419187]
[1749434606481,1.13878725,105490.0,105480.0,0.56419196]
[1749434606681,1.13878725,105490.0,105480.0,0.56439196]
[1749434606881,1.13878725,105490.0,105480.0,0.53179196]
[1749434607184,1.20178725,105490.0,105480.0,0.53179196]
[1749434607486,1.20178725,105490.0,105480.0,0.51739064]
[1749434607885,1.20178725,105490.0,105480.0,0.50088971]
[1749434608086,1.20178725,105490.0,105480.0,0.50088967]
[1749434608687,1.20178725,105490.0,105480.0,0.48669064]
[1749434608889,1.20178725,105490.0,105480.0,0.48649064]
[1749434609092,1.20178725,105490.0,105480.0,0.51929064]
[1749434609387,1.10588725,105490.0,105480.0,0.51949064]
[1749434610194,0.74508725,105490.0,105480.0,0.3721416]
[1749434610391,0.20484725,105490.0,105480.0,0.51949064]
[1749434610691,0.74488725,105490.0,105480.0,0.51949064]
[1749434611397,0.2966668,105490.0,105480.0,0.99779739]
[1749434611691,0.7337468,105490.0,105480.0,0.99779739]
[1749434611890,0.2966668,105490.0,105480.0,1.09779739]
[1749434612492,0.2966668,105490.0,105480.0,1.1120296]
[1749434612797,0.00429,105490.0,105480.0,1.09779739]
[1749434612991,0.00429,105490.0,105480.0,1.22953635]
[1749434613288,0.10717,105490.0,105480.0,1.23154152]
[1749434613493,0.10717,105490.0,105480.0,1.23154132]
[1749434613689,0.10288,105500.0,105480.0,1.38682652]
[1749434613883,0.1894789,105500.0,105490.0,1.05376689]
[1749434614082,0.2923589,105500.0,105490.0,1.21537687]
[1749434614284,0.10288,105500.0,105490.0,1.21537687]
[1749434614486,0.10288,105500.0,105490.0,1.31018175]
[1749434614692,0.2923589,105500.0,105490.0,1.29593989]
[1749434614994,0.2923589,105500.0,105490.0,1.31018179]
[1749434615188,0.2923589,105500.0,105490.0,1.29593989]
[1749434615694,0.2923589,105500.0,105490.0,1.3101818]
[1749434616286,0.2923589,105500.0,105490.0,1.29593989]
[1749434616795,0.2923589,105500.0,105490.0,1.31018051]
[1749434616984,0.2923589,105500.0,105490.0,1.29593989]
[1749434617186,0.2923589,105500.0,105490.0,1.3101805]
[1749434617585,0.2923589,105500.0,105490.0,1.29593989]
[1749434618797,0.3317198,105510.0,105500.0,0.1894788]
[1749434618996,0.7767418,105510.0,105500.0,0.34018555]
[1749434619297,0.3398618,105510.0,105500.0,0.37238555]
[1749434619487,0.7768618,105510.0,105500.0,0.46717677]
[1749434620398,0.7768618,105510.0,105500.0,0.50508677]
[1749434621099,0.5400216,105510.0,105500.0,0.50508677]
[1749434621400,0.2926825,105510.0,105500.0,1.01323581]
[1749434621899,0.2924825,105510.0,105500.0,1.01323581]
[1749434622089,0.2926825,105510.0,105500.0,1.01323581]
[1749434623696,0.0003416,105510.0,105500.0,1.01323581]
[1749434623902,0.1031816,105510.0,105500.0,1.01323581]
[1749434625400,0.2926425,105510.0,105500.0,1.01323581]
[1749434625804,0.1031816,105510.0,105500.0,1.01323581]
[1749434626302,0.2926425,105510.0,105500.0,1.01323581]
[1749434628095,0.3256425,105510.0,105500.0,1.01323581]
[1749434629703,0.3256425,105510.0,105500.0,0.89572906]
[1749434629905,0.3256425,105510.0,105500.0,1.01323581]
[1749434630395,0.3256425,105510.0,105500.0,1.01729241]
[1749434630998,0.3256425,105510.0,105500.0,1.31419241]
[1749434631609,0.1361816,105510.0,105500.0,1.31419241]
[1749434631992,0.1361816,105510.0,105500.0,1.41419241]
[1749434633302,1.10821027,105520.0,105510.0,0.1894609]
[1749434633303,0.16538,105520.0,105510.0,0.1894609]
[1749434633500,0.16538,105520.0,105510.0,1.09756077]
[1749434633903,0.16538,105520.0,105510.0,1.19233402]
[1749434634101,0.16538,105520.0,105510.0,1.07482727]
[1749434634508,0.16738,105520.0,105510.0,1.07482727]
[1749434634700,0.16734,105520.0,105510.0,1.37172727]
[1749434634903,0.16754,105520.0,105510.0,1.37172727]
[1749434635209,0.16854,105520.0,105510.0,1.37172727]
[1749434635406,0.10524,105520.0,105510.0,1.37172727]
[1749434636210,0.13624,105520.0,105510.0,1.37172727]
[1749434639313,0.0032,105520.0,105510.0,1.34164765]
[1749434639510,0.0032,105520.0,105510.0,2.01526835]
[1749434639807,0.003,105520.0,105510.0,2.11004435]
[1749434640201,0.0032,105520.0,105510.0,1.90308365]
[1749434640402,0.1965816,105530.0,105520.0,0.1894429]
[1749434640601,0.1965816,105530.0,105520.0,1.0489423]
[1749434640802,0.1965816,105530.0,105520.0,1.0491423]
[1749434641011,0.1967816,105530.0,105520.0,1.14390657]
[1749434641714,0.1987816,105530.0,105520.0,1.14390657]
[1749434642512,0.2007816,105530.0,105520.0,1.14390657]
[1749434642914,0.2007816,105530.0,105520.0,1.44080657]
[1749434643315,0.2007816,105530.0,105520.0,1.45182104]
[1749434644010,0.0987416,105530.0,105520.0,1.48972104]
[1749434644212,0.1063816,105530.0,105520.0,1.48972104]
[1749434644509,0.0041416,105530.0,105520.0,1.55602104]
[1749434644710,0.0043416,105530.0,105520.0,1.55602104]
[1749434645617,0.0043416,105530.0,105520.0,1.56007764]
[1749434649106,0.0043416,105530.0,105520.0,1.54906317]
[1749434649308,0.0346416,105530.0,105520.0,1.69655778]
[1749434649511,0.0344416,105530.0,105520.0,1.48989438]
[1749434649718,0.0346416,105530.0,105520.0,1.48989438]
[1749434651816,0.0655416,105530.0,105520.0,1.48989438]
[1749434652620,0.0655416,105530.0,105520.0,1.42359438]
[1749434652813,0.0655416,105530.0,105520.0,1.41953778]
[1749434655322,0.0655416,105530.0,105520.0,1.47870657]
[1749434655522,0.2549666,105530.0,105520.0,1.47870657]
[1749434655823,0.0655416,105530.0,105520.0,1.47870657]
[1749434657617,0.0655416,105530.0,105520.0,1.54060657]
[1749434657929,0.0043416,105530.0,105520.0,1.64614317]
[1749434658110,0.0931,105540.0,105530.0,0.1894251]
[1749434658314,0.0931,105540.0,105530.0,1.21217586]
[1749434658516,0.0931,105540.0,105530.0,1.06463185]
[1749434658718,0.0933,105540.0,105530.0,1.36605952]
[1749434659417,0.0943,105540.0,105530.0,1.36605952]
[1749434660526,0.0941,105540.0,105530.0,1.36605952]
[1749434661228,0.0943,105540.0,105530.0,1.36605952]
[1749434663430,0.0943,105540.0,105530.0,1.39635952]
[1749434663729,0.0943,105540.0,105530.0,1.83139952]
[1749434663919,0.0001416,105550.0,105540.0,0.1894071]
[1749434664121,0.0001416,105550.0,105540.0,1.00454287]
[1749434664418,0.0001416,105550.0,105540.0,1.091884]
[1749434664618,0.0003416,105550.0,105540.0,1.24883929]
[1749434664823,0.0003416,105550.0,105540.0,1.54573929]
[1749434665026,0.0001416,105550.0,105540.0,1.54573929]
[1749434665228,0.0003416,105550.0,105540.0,1.33907589]
[1749434665426,0.0003416,105550.0,105540.0,1.54573325]
[1749434665631,0.0003416,105550.0,105540.0,1.4282265]
[1749434667323,0.0943416,105550.0,105540.0,1.4282265]
[1749434667524,0.0943416,105550.0,105540.0,1.3963265]
[1749434667726,0.76203745,105550.0,105540.0,0.78771975]
[1749434667920,0.76203745,105550.0,105540.0,0.93533457]
[1749434668124,0.76203745,105550.0,105540.0,0.78771975]
[1749434668428,0.0943416,105550.0,105540.0,0.84618396]
[1749434669530,0.0941416,105550.0,105540.0,0.54928396]
[1749434669730,0.0943416,105550.0,105540.0,0.54928396]
[1749434670333,0.0943416,105550.0,105540.0,0.6083265]
[1749434671429,0.0943416,105550.0,105540.0,0.49081975]
[1749434671633,0.0943416,105550.0,105540.0,0.6083265]
[1749434672337,0.0943416,105550.0,105540.0,0.9691265]
[1749434672530,0.0943416,105550.0,105540.0,0.6083265]
[1749434675335,0.0943416,105550.0,105540.0,0.9052265]
[1749434677336,0.0943416,105550.0,105540.0,1.2660265]
[1749434677538,0.0943416,105550.0,105540.0,1.3039165]
[1749434678740,0.0943416,105550.0,105540.0,1.4039165]
[1749434678933,0.0941416,105550.0,105540.0,1.4665165]
[1749434679136,0.0003416,105550.0,105540.0,1.4665165]
[1749434679340,0.0003416,105550.0,105540.0,1.4993165]
[1749434679737,0.0003416,105550.0,105540.0,1.61682325]
[1749434680038,0.0001416,105550.0,105540.0,1.61682325]
[1749434680238,0.0003416,105550.0,105540.0,1.62087985]
[1749434681435,0.0003416,105550.0,105540.0,1.38586635]
[1749434681633,0.0003416,105550.0,105540.0,1.02506635]
[1749434681839,0.0003416,105550.0,105540.0,1.1425731]
[1749434682140,0.0003416,105550.0,105540.0,1.5033731]
[1749434682444,0.0003416,105550.0,105540.0,1.4993165]
[1749434684337,0.0003416,105550.0,105540.0,1.76449349]
[1749434684533,0.0003416,105550.0,105540.0,1.41016589]
[1749434684738,0.0003416,105550.0,105540.0,1.51160589]
[1749434684940,0.0001416,105550.0,105540.0,1.39409914]
[1749434685141,0.19364,105570.0,105560.0,0.1893712]
[1749434685445,0.19364,105570.0,105560.0,0.30687795]
[1749434685750,0.19364,105570.0,105560.0,0.40162426]
[1749434686739,0.19364,105570.0,105560.0,0.71309749]
[1749434687336,0.19384,105570.0,105560.0,0.71309749]
[1749434689445,0.0924,105570.0,105560.0,0.80052162]
[1749434690246,0.0924,105570.0,105560.0,1.09742162]
[1749434690446,0.0924,105570.0,105560.0,1.10147822]
[1749434691450,0.0922,105570.0,105560.0,1.10147822]
[1749434691749,0.0924,105570.0,105560.0,1.10147822]
[1749434691944,0.0924,105570.0,105560.0,1.46227822]
[1749434692949,0.0924,105570.0,105560.0,1.10147822]
[1749434693343,0.4532,105570.0,105560.0,0.93767822]
[1749434694744,0.0924,105570.0,105560.0,0.93767822]
[1749434700153,0.0924,105570.0,105560.0,1.08523268]
[1749434700358,0.0924,105570.0,105560.0,0.87857532]
[1749434701748,0.4532,105570.0,105560.0,1.08523268]
[1749434701948,0.4532,105570.0,105560.0,0.87857532]
[1749434702452,0.0924,105570.0,105560.0,0.87857532]
[1749434704255,0.0924,105570.0,105560.0,0.91646532]
[1749434704554,0.0924,105570.0,105560.0,1.12312268]
[1749434705154,0.0924,105570.0,105560.0,0.91646532]
[1749434705360,0.0924,105570.0,105560.0,0.76891086]
[1749434705555,0.0924,105570.0,105560.0,0.97556822]
[1749434709150,0.0607,105570.0,105560.0,1.43636822]
[1749434709345,0.0002,105570.0,105560.0,1.52966822]
[1749434711365,0.0001416,105580.0,105570.0,0.2893533]
[1749434711560,0.0001416,105580.0,105570.0,1.25501765]
[1749434711857,0.0001416,105580.0,105570.0,1.4833868]
[1749434712056,0.0001416,105580.0,105570.0,1.57811516]
[1749434712455,0.0003416,105580.0,105570.0,1.57811516]
[1749434713459,0.0001416,105580.0,105570.0,1.57811516]
[1749434713655,0.0003416,105580.0,105570.0,1.57811516]
[1749434713855,0.0003416,105580.0,105570.0,1.81322772]
[1749434714260,0.0003416,105580.0,105570.0,1.57821422]
[1749434714461,0.0003416,105580.0,105570.0,1.81322772]
[1749434715459,0.0001416,105580.0,105570.0,1.81322772]
[1749434715660,0.0003416,105580.0,105570.0,1.81322772]
[1749434716155,0.0003416,105580.0,105570.0,1.60655516]
[1749434716364,0.0001416,105580.0,105570.0,1.81318661]
[1749434716557,0.0003416,105580.0,105570.0,2.00046786]
[1749434716753,1.41952,105610.0,105570.0,1.81111456]
[1749434716957,0.98992,105610.0,105600.0,0.1892995]
[1749434717162,0.55488,105610.0,105600.0,0.1892995]
[1749434717353,0.62924,105610.0,105600.0,0.45437038]
[1749434717560,0.62924,105610.0,105600.0,0.58188977]
[1749434717860,0.0922,105610.0,105600.0,0.58188977]
[1749434718058,0.092,105610.0,105600.0,0.58188977]
[1749434718259,0.0305,105610.0,105600.0,0.97298977]
[1749434718563,0.0001416,105620.0,105610.0,0.1892815]
[1749434718867,0.0001416,105620.0,105610.0,0.51745238]
[1749434719056,0.1896052,105620.0,105610.0,0.39994563]
[1749434719361,0.2860052,105620.0,105610.0,0.49462915]
[1749434719558,0.2860052,105620.0,105610.0,0.34706502]
[1749434719759,0.2860052,105620.0,105610.0,0.42289127]
[1749434720954,0.2860052,105620.0,105610.0,0.39259127]
[1749434721659,0.29695045,105620.0,105610.0,0.39259127]
[1749434722359,0.65775045,105620.0,105610.0,0.46432915]
[1749434722563,0.65775045,105620.0,105610.0,0.31676502]
[1749434723665,0.29695045,105620.0,105610.0,0.31676502]
[1749434724462,0.65775045,105620.0,105610.0,0.31676502]
[1749434724965,0.29695045,105620.0,105610.0,0.39326429]
[1749434725557,0.65775045,105620.0,105610.0,0.39326429]
[1749434727062,0.65775045,105620.0,105610.0,0.36046429]
[1749434727458,0.7752572,105620.0,105610.0,0.28396502]
[1749434731463,0.7752572,105620.0,105610.0,0.09468352]
[1749434731770,0.8699372,105620.0,105610.0,0.09468352]
[1749434732174,0.8699372,105620.0,105590.0,0.3314276]
[1749434732175,0.1892995,105600.0,105590.0,0.3314276]
[1749434732362,0.66760625,105600.0,105590.0,0.3314276]
[1749434732562,0.66760625,105600.0,105590.0,0.42611112]
[1749434732563,0.76370625,105600.0,105590.0,0.42611112]
[1749434734269,0.76370625,105600.0,105590.0,0.09482512]
[1749434734270,0.881213,105600.0,105590.0,0.09482512]
[1749434734477,0.6461995,105600.0,105590.0,0.28414252]
[1749434734774,0.76370625,105600.0,105590.0,0.28414252]
[1749434735775,0.76370625,105600.0,105590.0,0.31258252]
[1749434737878,0.76370625,105600.0,105590.0,0.35046252]
[1749434739472,0.76370625,105600.0,105590.0,0.16114512]
[1749434739671,0.76370625,105600.0,105590.0,0.0664616]
[1749434740172,0.881213,105600.0,105590.0,0.0664616]
[1749434740373,0.975917,105600.0,105590.0,0.0664616]
[1749434740577,0.975917,105600.0,105590.0,0.255779]
[1749434741079,0.85841025,105600.0,105590.0,0.0664616]
[1749434741264,0.975917,105600.0,105590.0,0.0664616]
[1749434742284,0.99324846,105600.0,105590.0,0.0664616]
[1749434742478,1.42264846,105600.0,105590.0,0.0664616]
[1749434745669,1.96108846,105600.0,105590.0,0.0664616]
[1749434745870,1.96116846,105600.0,105590.0,0.0664616]
[1749434746482,1.42264846,105600.0,105590.0,0.0664616]
[1749434746680,1.30514171,105600.0,105590.0,0.255779]
[1749434746879,1.09293096,105600.0,105590.0,0.255779]
[1749434747079,1.63153096,105600.0,105590.0,0.255779]
[1749434747381,1.09313096,105600.0,105590.0,0.255779]
[1749434747577,1.63181096,105600.0,105590.0,0.35048045]
[1749434747778,1.63181096,105600.0,105590.0,0.41418045]
[1749434747981,1.74911771,105600.0,105590.0,0.41418045]
[1749434748182,1.74931771,105600.0,105590.0,0.41418045]
[1749434748484,1.74931771,105600.0,105590.0,0.38088045]
[1749434748685,1.75015771,105600.0,105590.0,0.38088045]
[1749434750087,1.86766446,105600.0,105590.0,0.0664616]
[1749434756496,1.75015771,105600.0,105590.0,0.0664616]
[1749434757813,2.11095771,105600.0,105590.0,0.0664616]
[1749434758407,2.11095771,105600.0,105590.0,0.0705182]
[1749434758806,1.57143771,105600.0,105590.0,0.0705182]
[1749434759004,2.11015771,105600.0,105590.0,0.0705182]
[1749434759211,2.11011771,105600.0,105590.0,0.0705182]
[1749434759408,2.11011771,105600.0,105590.0,0.0664616]
[1749434759604,1.57143771,105600.0,105590.0,0.0664616]
[1749434759809,2.11007771,105600.0,105590.0,0.0664616]
[1749434760310,2.11007771,105600.0,105590.0,0.0705182]
[1749434766509,2.15300886,105600.0,105590.0,0.0705182]
[1749434767408,2.15300886,105600.0,105590.0,0.0664616]
[1749434767621,2.27051561,105600.0,105590.0,0.0664616]
[1749434768711,2.22758446,105600.0,105590.0,0.0664616]
[1749434768911,2.36523057,105600.0,105590.0,0.0664616]
[1749434776720,2.27052657,105600.0,105590.0,0.0664616]
[1749434778220,2.03551307,105600.0,105590.0,0.0664616]
[1749434778414,2.27052657,105600.0,105590.0,0.0664616]
[1749434778616,2.27052657,105600.0,105590.0,0.0705182]
[1749434779726,2.27052657,105600.0,105590.0,0.0664616]
[1749434781315,2.27029089,105600.0,105590.0,0.0664616]
[1749434782615,1.71594414,105600.0,105590.0,0.0664616]
[1749434782813,2.15110414,105600.0,105590.0,0.1320182]
[1749434783115,2.15130414,105600.0,105590.0,0.1320182]
[1749434784026,2.15154414,105600.0,105590.0,0.1320182]
[1749434786425,2.26905089,105600.0,105590.0,0.1320182]
[1749434786726,2.26910295,105600.0,105590.0,0.1320182]
[1749434787820,2.26910295,105600.0,105590.0,0.0705182]
[1749434789919,2.1515962,105600.0,105590.0,0.0705182]
[1749434790722,2.26910295,105600.0,105590.0,0.0705182]
[1749434797831,2.32818687,105600.0,105590.0,0.0705182]
[1749434801426,2.32818687,105600.0,105590.0,0.06599868]
[1749434801632,0.1893354,105580.0,105570.0,0.17077041]
[1749434801826,0.1893533,105570.0,105560.0,0.2218712]
[1749434802035,0.69906005,105570.0,105560.0,0.2526712]
[1749434802229,0.66766005,105570.0,105560.0,0.2526712]
[1749434803537,0.66766005,105570.0,105560.0,0.2556712]
[1749434804137,0.66766005,105570.0,105560.0,0.2566712]
[1749434804339,0.74252509,105570.0,105560.0,0.2566712]
[1749434804940,0.74252509,105570.0,105560.0,0.2895712]
[1749434805440,0.7531156,105570.0,105560.0,0.2895712]
[1749434805937,0.7531156,105570.0,105560.0,0.2885712]
[1749434806339,0.7831156,105570.0,105560.0,0.2885712]
[1749434810149,0.7831156,105570.0,105560.0,0.2926278]
[1749434814161,0.7831156,105570.0,105560.0,0.2885712]
[1749434814364,0.37139051,105570.0,105560.0,0.50080631]
[1749434814557,0.11263051,105570.0,105560.0,0.50080631]
[1749434814755,0.54835051,105570.0,105560.0,0.64852672]
[1749434815055,0.73790381,105570.0,105560.0,0.64852672]
[1749434815258,0.20014381,105570.0,105560.0,0.65258332]
[1749434815461,0.73794381,105570.0,105560.0,0.65258332]
[1749434815964,0.73794381,105570.0,105560.0,0.65058332]
[1749434816157,0.73794381,105570.0,105560.0,0.71245269]
[1749434816758,0.73794381,105570.0,105560.0,0.71545269]
[1749434817263,0.73794381,105570.0,105560.0,0.71139609]
[1749434817562,0.73794381,105570.0,105560.0,1.00629609]
[1749434818064,0.73794381,105570.0,105560.0,0.88878934]
[1749434820761,1.21625056,105570.0,105560.0,0.88878934]
[1749434821063,1.21625056,105570.0,105560.0,0.67422675]
[1749434821267,1.30935056,105570.0,105560.0,0.46763697]
[1749434822064,1.30935056,105570.0,105560.0,0.24746577]
[1749434822262,1.42685731,105570.0,105560.0,0.15273741]
[1749434822562,1.42685731,105570.0,105560.0,0.002]
[1749434822758,0.1893712,105560.0,105550.0,0.54458639]
[1749434823067,0.1893712,105560.0,105550.0,0.63931475]
[1749434823068,0.73167795,105560.0,105550.0,0.63931475]
[1749434823267,0.73167795,105560.0,105550.0,0.49727595]
[1749434823863,0.73167795,105560.0,105550.0,0.31643854]
[1749434824057,0.73167795,105560.0,105550.0,0.31743854]
[1749434824266,0.73167795,105560.0,105550.0,0.31943854]
[1749434824768,0.73167795,105560.0,105550.0,0.13006084]
[1749434824968,0.73167795,105560.0,105550.0,0.31944994]
[1749434825661,0.73167795,105560.0,105550.0,0.28734994]
[1749434826873,0.73167795,105560.0,105550.0,0.00323248]
[1749434827167,1.16123795,105560.0,105550.0,0.00323248]
[1749434832074,1.16123795,105560.0,105550.0,0.0031416]
[1749434836568,0.1893895,105550.0,105540.0,0.0002]
[1749434836764,1.415563,105550.0,105540.0,1e-07]
[1749434838074,1.29805625,105550.0,105540.0,0.0020001]
[1749434838775,1.29805625,105550.0,105540.0,0.0040001]
[1749434839176,0.6425895,105550.0,105540.0,0.0040001]
[1749434839367,1.29813625,105550.0,105540.0,0.0040001]
[1749434840673,0.6427895,105550.0,105540.0,0.0040001]
[1749434840974,1.29837625,105550.0,105540.0,0.0040001]
[1749434841170,0.76029625,105550.0,105540.0,0.0040001]
[1749434841371,1.30065625,105550.0,105540.0,0.0040001]
[1749434841770,0.76029625,105550.0,105540.0,0.0040001]
[1749434842172,1.30061625,105550.0,105540.0,0.0040001]
[1749434842372,0.86329625,105550.0,105540.0,0.0040001]
[1749434842675,1.30169625,105550.0,105540.0,0.0040001]
[1749434845177,0.76029625,105550.0,105540.0,0.0040001]
[1749434845376,1.30177625,105550.0,105540.0,0.0040001]
[1749434845978,1.30157625,105550.0,105540.0,0.0040001]
[1749434846178,1.30177625,105550.0,105540.0,0.0040001]
[1749434846679,1.24091625,105550.0,105540.0,0.1934075]
[1749434846880,1.24071625,105550.0,105540.0,0.2553075]
[1749434847179,1.0919095,105550.0,105540.0,0.35005381]
[1749434847379,1.0917095,105550.0,105540.0,0.38225381]
[1749434847580,1.20941625,105550.0,105540.0,0.38225381]
[1749434848967,1.10621625,105550.0,105540.0,0.19284641]
[1749434849167,1.20949625,105550.0,105540.0,0.19284641]
[1749434850484,1.20949625,105550.0,105540.0,0.16064641]
[1749434852579,1.20949625,105550.0,105540.0,0.0351001]
[1749434852787,1.27409625,105550.0,105540.0,0.0040001]
[1749434854478,1.27409625,105550.0,105540.0,0.0369001]
[1749434855386,1.27409625,105550.0,105540.0,0.0682001]
[1749434855777,1.27815285,105550.0,105540.0,0.0682001]
[1749434855978,1.21355285,105550.0,105540.0,0.2576075]
[1749434856180,0.5544461,105550.0,105540.0,0.2576075]
[1749434856390,1.0955661,105550.0,105540.0,0.2576075]
[1749434856886,1.0915095,105550.0,105540.0,0.2576075]
[1749434857384,1.20901625,105550.0,105540.0,0.2576075]
[1749434860089,0.66789625,105550.0,105540.0,0.2576075]
[1749434860386,0.5501895,105550.0,105540.0,0.50009122]
[1749434860589,1.0916695,105550.0,105540.0,0.50009122]
[1749434860779,0.5503895,105550.0,105540.0,0.50009122]
[1749434860978,1.0916695,105550.0,105540.0,0.50009122]
[1749434861389,1.0914695,105550.0,105540.0,0.50009122]
[1749434861681,1.0916695,105550.0,105540.0,0.50009122]
[1749434862688,1.20917625,105550.0,105540.0,0.50009122]
[1749434865082,0.84837625,105550.0,105540.0,0.50009122]
[1749434865277,1.20917625,105550.0,105540.0,0.35235381]